[Event "Late-Titled-Tuesday-Blitz-May-28-2024"]
[Site "Chess.com"]
[Date "2024.05.28"]
[Round "7"]
[White "Genghis_K"]
[Black "GarayevKanan"]
[Result "1-0"]
[WhiteElo "2946"]
[BlackElo "2731"]
[TimeControl "180+1"]
[EndTime "15:15:34 PDT"]
[Termination "Genghis_K won by resignation"]

1. e4 {[%clk 0:02:42.1]} 1... c5 {[%clk 0:02:56]} 2. Nf3 {[%clk 0:02:40.6]} 2...
d6 {[%clk 0:02:56.6]} 3. d4 {[%clk 0:02:36]} 3... cxd4 {[%clk 0:02:57.5]} 4.
Nxd4 {[%clk 0:02:36.6]} 4... Nf6 {[%clk 0:02:56.8]} 5. Nc3 {[%clk 0:02:37.1]}
5... g6 {[%clk 0:02:56.9]} 6. f3 {[%clk 0:02:35.4]} 6... a6 {[%clk 0:02:55.4]}
7. Be3 {[%clk 0:02:32.6]} 7... Bg7 {[%clk 0:02:55]} 8. Qd2 {[%clk 0:02:32]} 8...
h5 {[%clk 0:02:54.6]} 9. Bc4 {[%clk 0:02:31.3]} 9... b5 {[%clk 0:02:54.5]} 10.
Bd5 {[%clk 0:02:23.6]} 10... Nxd5 {[%clk 0:02:51.7]} 11. Nxd5 {[%clk 0:02:24.2]}
11... Bb7 {[%clk 0:02:50.6]} 12. Bg5 {[%clk 0:02:02.7]} 12... Bxd5 {[%clk
0:02:40.9]} 13. exd5 {[%clk 0:02:02.6]} 13... Qb6 {[%clk 0:02:41.6]} 14. O-O-O
{[%clk 0:01:57.9]} 14... Bxd4 {[%clk 0:02:37.7]} 15. Qxd4 {[%clk 0:01:57.4]}
15... Qxd4 {[%clk 0:02:38.6]} 16. Rxd4 {[%clk 0:01:57.4]} 16... Nd7 {[%clk
0:02:39.5]} 17. Re1 {[%clk 0:01:57.3]} 17... f6 {[%clk 0:02:32.1]} 18. Bf4
{[%clk 0:01:49.3]} 18... Kf7 {[%clk 0:02:30.9]} 19. Rde4 {[%clk 0:01:46.4]}
19... Ne5 {[%clk 0:02:28.6]} 20. Bg3 {[%clk 0:01:45]} 20... g5 {[%clk
0:02:27.5]} 21. h4 {[%clk 0:01:42.2]} 21... Rag8 {[%clk 0:02:18]} 22. Bxe5
{[%clk 0:01:30.9]} 22... fxe5 {[%clk 0:02:16]} 23. hxg5 {[%clk 0:01:31]} 23...
Rxg5 {[%clk 0:02:16.9]} 24. f4 {[%clk 0:01:31.5]} 24... Rxg2 {[%clk 0:02:09.5]}
25. fxe5 {[%clk 0:01:31.1]} 25... Rg4 {[%clk 0:02:07.1]} 26. Rf1+ {[%clk
0:01:22.5]} 26... Kg6 {[%clk 0:02:02.4]} 27. Re3 {[%clk 0:01:21.4]} 27... Rd8
{[%clk 0:01:57.3]} 28. exd6 {[%clk 0:01:17.7]} 28... Rxd6 {[%clk 0:01:58.2]} 29.
Rxe7 {[%clk 0:01:17]} 29... Rxd5 {[%clk 0:01:53.8]} 30. Re6+ {[%clk 0:01:16.9]}
30... Kg5 {[%clk 0:01:53.2]} 31. Rxa6 {[%clk 0:01:17.2]} 31... h4 {[%clk
0:01:53.1]} 32. Ra8 {[%clk 0:01:17.3]} 32... h3 {[%clk 0:01:49.8]} 33. Rh8
{[%clk 0:01:08.3]} 33... Rg2 {[%clk 0:01:40.6]} 34. Rxh3 {[%clk 0:01:05.1]}
34... Rc5 {[%clk 0:01:40.7]} 35. Rc3 {[%clk 0:01:02.3]} 35... Re5 {[%clk
0:01:35.8]} 36. a3 {[%clk 0:01:01.4]} 36... Kg4 {[%clk 0:01:32.4]} 37. Kb1
{[%clk 0:01:01.3]} 37... Ree2 {[%clk 0:01:31.1]} 38. Rc1 {[%clk 0:01:01]} 38...
Kf4 {[%clk 0:01:28.7]} 39. Rc5 {[%clk 0:01:00]} 39... Re5 {[%clk 0:01:29.3]} 40.
Rf1+ {[%clk 0:00:57.1]} 1-0

[Event "Late-Titled-Tuesday-Blitz-May-28-2024"]
[Site "Chess.com"]
[Date "2024.05.28"]
[Round "7"]
[White "BogdanDeac"]
[Black "KorolDimitriy75"]
[Result "1/2-1/2"]
[WhiteElo "3056"]
[BlackElo "2441"]
[TimeControl "180+1"]
[EndTime "15:15:39 PDT"]
[Termination "Game drawn by repetition"]

1. b3 {[%clk 0:03:00.9]} 1... c5 {[%clk 0:03:00]} 2. Bb2 {[%clk 0:03:00.5]} 2...
Nc6 {[%clk 0:03:00.7]} 3. e3 {[%clk 0:02:59.8]} 3... d6 {[%clk 0:03:00.1]} 4. f4
{[%clk 0:02:59.2]} 4... Nf6 {[%clk 0:02:58.6]} 5. Nf3 {[%clk 0:02:59.2]} 5... g6
{[%clk 0:02:58.8]} 6. Bxf6 {[%clk 0:02:57.8]} 6... exf6 {[%clk 0:02:58.8]} 7. c4
{[%clk 0:02:58.3]} 7... f5 {[%clk 0:02:54.6]} 8. Nc3 {[%clk 0:02:58.1]} 8... Bg7
{[%clk 0:02:55]} 9. Rc1 {[%clk 0:02:58.3]} 9... O-O {[%clk 0:02:54.3]} 10. Be2
{[%clk 0:02:58.6]} 10... Re8 {[%clk 0:02:51.7]} 11. O-O {[%clk 0:02:58.4]} 11...
Be6 {[%clk 0:02:41.7]} 12. Ng5 {[%clk 0:02:57.7]} 12... h6 {[%clk 0:02:35.1]}
13. Nxe6 {[%clk 0:02:57.3]} 13... fxe6 {[%clk 0:02:33.1]} 14. Bf3 {[%clk
0:02:57.9]} 14... Qd7 {[%clk 0:02:28.5]} 15. a3 {[%clk 0:02:57.3]} 15... Rac8
{[%clk 0:02:23.9]} 16. g3 {[%clk 0:02:56.1]} 16... Kh7 {[%clk 0:02:23.1]} 17.
Kh1 {[%clk 0:02:53.1]} 17... b6 {[%clk 0:02:14.8]} 18. Qe2 {[%clk 0:02:52.4]}
18... e5 {[%clk 0:01:51.4]} 19. Nd5 {[%clk 0:02:49.2]} 19... e4 {[%clk 0:01:50]}
20. Bg2 {[%clk 0:02:48.9]} 20... Ne7 {[%clk 0:01:49.2]} 21. Nc3 {[%clk
0:02:38.3]} 21... d5 {[%clk 0:01:45.2]} 22. cxd5 {[%clk 0:02:35.1]} 22... Nxd5
{[%clk 0:01:46.1]} 23. Na2 {[%clk 0:02:35.6]} 23... Rcd8 {[%clk 0:01:09.5]} 24.
Rfd1 {[%clk 0:02:30.6]} 24... Bb2 {[%clk 0:00:53.4]} 25. Rc2 {[%clk 0:02:28.9]}
25... Bxa3 {[%clk 0:00:53.7]} 26. Bf1 {[%clk 0:02:28.1]} 26... Nb4 {[%clk
0:00:43.1]} 27. Nxb4 {[%clk 0:02:27.7]} 27... Bxb4 {[%clk 0:00:44]} 28. Qa6
{[%clk 0:02:28.1]} 28... Re7 {[%clk 0:00:36.9]} 29. Bb5 {[%clk 0:02:25.7]} 29...
Qe6 {[%clk 0:00:32]} 30. Bc4 {[%clk 0:02:22.5]} 30... Qf6 {[%clk 0:00:32]} 31.
Bb5 {[%clk 0:02:21.8]} 31... h5 {[%clk 0:00:31.4]} 32. h4 {[%clk 0:02:21.4]}
32... Kh6 {[%clk 0:00:29.8]} 33. Kg2 {[%clk 0:02:18.8]} 33... Qe6 {[%clk
0:00:28.3]} 34. Qa4 {[%clk 0:02:05.6]} 34... a5 {[%clk 0:00:23.4]} 35. Kf2
{[%clk 0:02:05]} 35... Qf6 {[%clk 0:00:20.6]} 36. Ke2 {[%clk 0:02:04.5]} 36...
Re6 {[%clk 0:00:20.5]} 37. Bc4 {[%clk 0:02:02.7]} 37... Red6 {[%clk 0:00:20.5]}
38. Qa2 {[%clk 0:02:01.3]} 38... Qg7 {[%clk 0:00:19.5]} 39. Qa4 {[%clk
0:02:01.5]} 39... Qf6 {[%clk 0:00:19.4]} 40. Qa2 {[%clk 0:02:00.9]} 40... Qg7
{[%clk 0:00:19.6]} 41. Qa4 {[%clk 0:02:01.1]} 41... Qf6 {[%clk 0:00:19.9]}
1/2-1/2

[Event "Late-Titled-Tuesday-Blitz-May-28-2024"]
[Site "Chess.com"]
[Date "2024.05.28"]
[Round "7"]
[White "KebabJangles"]
[Black "David_ATM"]
[Result "0-1"]
[WhiteElo "2279"]
[BlackElo "2418"]
[TimeControl "180+1"]
[EndTime "15:15:41 PDT"]
[Termination "David_ATM won by resignation"]

1. d4 {[%clk 0:03:00.9]} 1... d5 {[%clk 0:03:00]} 2. c4 {[%clk 0:02:56.5]} 2...
c6 {[%clk 0:03:00.4]} 3. Nf3 {[%clk 0:02:55.4]} 3... Nf6 {[%clk 0:03:00.8]} 4.
g3 {[%clk 0:02:53.9]} 4... Bf5 {[%clk 0:03:01.1]} 5. Bg2 {[%clk 0:02:53.1]} 5...
e6 {[%clk 0:03:01.7]} 6. O-O {[%clk 0:02:53]} 6... h6 {[%clk 0:03:02.3]} 7. Nc3
{[%clk 0:02:53]} 7... Bh7 {[%clk 0:03:02.6]} 8. Qb3 {[%clk 0:02:53.2]} 8... Qb6
{[%clk 0:03:02.5]} 9. c5 {[%clk 0:02:53.7]} 9... Qxb3 {[%clk 0:03:02.9]} 10.
axb3 {[%clk 0:02:53.9]} 10... Nbd7 {[%clk 0:03:03.7]} 11. h3 {[%clk 0:02:50.8]}
11... a6 {[%clk 0:03:02.7]} 12. g4 {[%clk 0:02:51]} 12... Be7 {[%clk 0:03:01.2]}
13. Bf4 {[%clk 0:02:50.3]} 13... Ne4 {[%clk 0:02:57]} 14. e3 {[%clk 0:02:49]}
14... O-O {[%clk 0:02:48.9]} 15. b4 {[%clk 0:02:48.1]} 15... Nxc3 {[%clk
0:02:35.4]} 16. bxc3 {[%clk 0:02:47.8]} 16... Be4 {[%clk 0:02:36]} 17. Ne5
{[%clk 0:02:47]} 17... Nxe5 {[%clk 0:02:35.8]} 18. Bxe5 {[%clk 0:02:47.9]} 18...
Bxg2 {[%clk 0:02:34.7]} 19. Kxg2 {[%clk 0:02:48.8]} 19... f6 {[%clk 0:02:18.8]}
20. Bg3 {[%clk 0:02:46.7]} 20... Rae8 {[%clk 0:02:16.8]} 21. Rae1 {[%clk
0:02:40.3]} 21... f5 {[%clk 0:02:00.4]} 22. Be5 {[%clk 0:02:37.9]} 22... Bf6
{[%clk 0:01:56.3]} 23. Bd6 {[%clk 0:02:37.6]} 23... Rf7 {[%clk 0:01:56.4]} 24.
f3 {[%clk 0:02:35.3]} 24... Bh4 {[%clk 0:01:54.6]} 25. Re2 {[%clk 0:02:33.8]}
25... Ra8 {[%clk 0:01:40.3]} 26. e4 {[%clk 0:02:28.4]} 26... fxe4 {[%clk
0:01:31.8]} 27. fxe4 {[%clk 0:02:27.3]} 27... Rxf1 {[%clk 0:01:17]} 28. Kxf1
{[%clk 0:02:25.6]} 28... a5 {[%clk 0:01:17.5]} 29. exd5 {[%clk 0:02:25.4]} 29...
exd5 {[%clk 0:01:16.6]} 30. Ra2 {[%clk 0:02:22.5]} 30... a4 {[%clk 0:01:11.5]}
31. Kg2 {[%clk 0:02:18.5]} 31... a3 {[%clk 0:01:01.2]} 32. Bc7 {[%clk 0:02:18]}
32... Be1 {[%clk 0:00:58.1]} 33. Ba5 {[%clk 0:02:15.8]} 33... Bxc3 {[%clk
0:00:58.2]} 34. Rxa3 {[%clk 0:02:15.7]} 34... Bxd4 {[%clk 0:00:58.6]} 35. Rd3
{[%clk 0:02:12.5]} 35... Bxc5 {[%clk 0:00:57.8]} 36. bxc5 {[%clk 0:02:09.8]}
36... Rxa5 {[%clk 0:00:57.3]} 37. Rb3 {[%clk 0:02:10.7]} 37... Rxc5 {[%clk
0:00:51.3]} 38. Rxb7 {[%clk 0:02:09.7]} 38... d4 {[%clk 0:00:47.4]} 39. Kf3
{[%clk 0:02:08.7]} 39... Rc3+ {[%clk 0:00:47.1]} 40. Ke4 {[%clk 0:02:09.1]}
40... Rxh3 {[%clk 0:00:44.6]} 41. Kxd4 {[%clk 0:02:09.1]} 41... Rg3 {[%clk
0:00:44.3]} 42. Kc5 {[%clk 0:02:07.6]} 42... Rxg4 {[%clk 0:00:44.4]} 43. Kxc6
{[%clk 0:02:08.1]} 43... Rd4 {[%clk 0:00:44.5]} 44. Kc5 {[%clk 0:02:08.2]} 44...
Rd1 {[%clk 0:00:44.7]} 45. Rb8+ {[%clk 0:02:07.8]} 45... Kh7 {[%clk 0:00:44.8]}
46. Rb7 {[%clk 0:02:07.9]} 46... h5 {[%clk 0:00:45.1]} 47. Rb4 {[%clk
0:02:07.8]} 47... Kh6 {[%clk 0:00:44.9]} 48. Kc4 {[%clk 0:02:08]} 48... h4
{[%clk 0:00:43]} 49. Kc3 {[%clk 0:02:08.4]} 49... g5 {[%clk 0:00:43.2]} 50. Kc2
{[%clk 0:02:08.7]} 50... Rd8 {[%clk 0:00:43.4]} 51. Rb6+ {[%clk 0:02:08.7]}
51... Kh5 {[%clk 0:00:43.8]} 52. Rb5 {[%clk 0:02:09.6]} 52... h3 {[%clk
0:00:43.9]} 53. Rb2 {[%clk 0:02:10.5]} 53... Kh4 {[%clk 0:00:43.6]} 54. Rb4+
{[%clk 0:02:10.4]} 54... g4 {[%clk 0:00:43.8]} 55. Rb7 {[%clk 0:02:11.3]} 55...
h2 {[%clk 0:00:42.7]} 56. Rh7+ {[%clk 0:02:11.5]} 56... Kg3 {[%clk 0:00:43.1]}
57. Kc1 {[%clk 0:02:11.1]} 57... Kg2 {[%clk 0:00:43.1]} 58. Kc2 {[%clk
0:02:11.3]} 58... h1=Q {[%clk 0:00:42.9]} 0-1

[Event "Late-Titled-Tuesday-Blitz-May-28-2024"]
[Site "Chess.com"]
[Date "2024.05.28"]
[Round "7"]
[White "yaguigor"]
[Black "Caterpiller35"]
[Result "1-0"]
[WhiteElo "2592"]
[BlackElo "2468"]
[TimeControl "180+1"]
[EndTime "15:15:52 PDT"]
[Termination "yaguigor won by resignation"]

1. e4 {[%clk 0:03:00.9]} 1... c5 {[%clk 0:02:59.3]} 2. Nf3 {[%clk 0:03:00]} 2...
Nc6 {[%clk 0:02:56.8]} 3. d4 {[%clk 0:02:59]} 3... cxd4 {[%clk 0:02:53.3]} 4.
Nxd4 {[%clk 0:02:59.9]} 4... e5 {[%clk 0:02:53.3]} 5. Nb5 {[%clk 0:02:59.2]}
5... d6 {[%clk 0:02:53.4]} 6. c4 {[%clk 0:02:55.5]} 6... Be7 {[%clk 0:02:51.7]}
7. Bd3 {[%clk 0:02:54.7]} 7... Be6 {[%clk 0:02:50.9]} 8. O-O {[%clk 0:02:52.3]}
8... Rc8 {[%clk 0:02:47.4]} 9. b3 {[%clk 0:02:51.6]} 9... a6 {[%clk 0:02:43]}
10. N5c3 {[%clk 0:02:51]} 10... Bg5 {[%clk 0:02:43.1]} 11. Bb2 {[%clk
0:02:49.9]} 11... Nf6 {[%clk 0:02:42.5]} 12. Nd5 {[%clk 0:02:50.3]} 12... O-O
{[%clk 0:02:41.8]} 13. Nbc3 {[%clk 0:02:43]} 13... Nd4 {[%clk 0:02:41.4]} 14.
Ne2 {[%clk 0:02:41.2]} 14... Nxe2+ {[%clk 0:02:37.3]} 15. Qxe2 {[%clk
0:02:40.3]} 15... Bxd5 {[%clk 0:02:28.4]} 16. cxd5 {[%clk 0:02:33.7]} 16... Qa5
{[%clk 0:02:17.2]} 17. Rfd1 {[%clk 0:02:30.4]} 17... g6 {[%clk 0:02:09.8]} 18.
g3 {[%clk 0:02:29.6]} 18... h5 {[%clk 0:02:04.9]} 19. Kg2 {[%clk 0:02:17.6]}
19... Kg7 {[%clk 0:02:04.5]} 20. a3 {[%clk 0:02:05.8]} 20... h4 {[%clk
0:01:52.2]} 21. b4 {[%clk 0:02:02.3]} 21... Qd8 {[%clk 0:01:36.7]} 22. Rf1
{[%clk 0:01:58.6]} 22... h3+ {[%clk 0:01:17.3]} 23. Kh1 {[%clk 0:01:23.6]} 23...
Nh5 {[%clk 0:01:11]} 24. Qg4 {[%clk 0:01:21.6]} 24... Bf6 {[%clk 0:01:07]} 25.
Qxh3 {[%clk 0:01:18.9]} 25... Rh8 {[%clk 0:01:06.4]} 26. Qg4 {[%clk 0:01:18.7]}
26... Rh7 {[%clk 0:00:56.2]} 27. Kg2 {[%clk 0:01:17.6]} 27... Qb6 {[%clk
0:00:51.6]} 28. Qxc8 {[%clk 0:01:12.1]} 1-0

[Event "Late-Titled-Tuesday-Blitz-May-28-2024"]
[Site "Chess.com"]
[Date "2024.05.28"]
[Round "7"]
[White "Mikhail_Golubev"]
[Black "Kombinator01"]
[Result "0-1"]
[WhiteElo "2624"]
[BlackElo "2485"]
[TimeControl "180+1"]
[EndTime "15:15:53 PDT"]
[Termination "Kombinator01 won by resignation"]

1. e4 {[%clk 0:03:00.9]} 1... e5 {[%clk 0:02:59.5]} 2. Nf3 {[%clk 0:03:00.7]}
2... Nc6 {[%clk 0:03:00.2]} 3. Bc4 {[%clk 0:03:00.5]} 3... Nf6 {[%clk
0:03:00.1]} 4. d3 {[%clk 0:02:59.8]} 4... Be7 {[%clk 0:02:59.7]} 5. O-O {[%clk
0:02:57.3]} 5... O-O {[%clk 0:03:00.3]} 6. Nc3 {[%clk 0:02:53.1]} 6... d6 {[%clk
0:03:00.2]} 7. a3 {[%clk 0:02:53.3]} 7... Be6 {[%clk 0:02:58.3]} 8. Be3 {[%clk
0:02:49.5]} 8... Qd7 {[%clk 0:02:52]} 9. Qe2 {[%clk 0:02:40.7]} 9... h6 {[%clk
0:02:50.6]} 10. Bxe6 {[%clk 0:02:30]} 10... Qxe6 {[%clk 0:02:47.5]} 11. d4
{[%clk 0:02:23.7]} 11... exd4 {[%clk 0:02:46.9]} 12. Nxd4 {[%clk 0:02:24.3]}
12... Nxd4 {[%clk 0:02:46.9]} 13. Bxd4 {[%clk 0:02:24.9]} 13... Rfe8 {[%clk
0:02:46.5]} 14. Rfe1 {[%clk 0:02:05.5]} 14... a6 {[%clk 0:02:39.8]} 15. Rad1
{[%clk 0:02:00.3]} 15... Rad8 {[%clk 0:02:31.6]} 16. Bxf6 {[%clk 0:01:46]} 16...
Bxf6 {[%clk 0:02:30.5]} 17. Nd5 {[%clk 0:01:44.7]} 17... Rd7 {[%clk 0:02:26.1]}
18. c4 {[%clk 0:01:36.7]} 18... c6 {[%clk 0:02:19.7]} 19. Nf4 {[%clk 0:00:55.4]}
19... Qe5 {[%clk 0:02:16]} 20. Qg4 {[%clk 0:00:35.2]} 20... Rde7 {[%clk
0:01:54.7]} 21. Re2 {[%clk 0:00:24.6]} 21... Qg5 {[%clk 0:01:50.4]} 22. Qf3
{[%clk 0:00:19.7]} 22... Be5 {[%clk 0:01:49.7]} 23. Nd3 {[%clk 0:00:17.6]} 23...
Qh4 {[%clk 0:01:44.7]} 24. g3 {[%clk 0:00:16.9]} 24... Qf6 {[%clk 0:01:42.9]}
25. Nxe5 {[%clk 0:00:11.1]} 25... Qxe5 {[%clk 0:01:39.8]} 26. Kg2 {[%clk
0:00:10.8]} 26... f5 {[%clk 0:01:37.7]} 27. Qb3 {[%clk 0:00:07.9]} 27... fxe4
{[%clk 0:01:36.8]} 28. Qxb7 {[%clk 0:00:07.9]} 28... Rxb7 {[%clk 0:01:35.1]} 0-1

[Event "Late-Titled-Tuesday-Blitz-May-28-2024"]
[Site "Chess.com"]
[Date "2024.05.28"]
[Round "7"]
[White "JohnWhite1952"]
[Black "Connectedcloud"]
[Result "0-1"]
[WhiteElo "2018"]
[BlackElo "2225"]
[TimeControl "180+1"]
[EndTime "15:15:53 PDT"]
[Termination "Connectedcloud won on time"]

1. e4 {[%clk 0:02:58.6]} 1... c5 {[%clk 0:02:59.2]} 2. Nf3 {[%clk 0:02:57.9]}
2... d6 {[%clk 0:02:59.1]} 3. d3 {[%clk 0:02:56.2]} 3... Nc6 {[%clk 0:02:57]} 4.
g3 {[%clk 0:02:55.8]} 4... Nf6 {[%clk 0:02:57.2]} 5. Bg2 {[%clk 0:02:55.1]} 5...
g6 {[%clk 0:02:57.3]} 6. O-O {[%clk 0:02:54.7]} 6... Bg7 {[%clk 0:02:57.9]} 7.
Re1 {[%clk 0:02:54.4]} 7... O-O {[%clk 0:02:58.2]} 8. Nbd2 {[%clk 0:02:52.3]}
8... Rb8 {[%clk 0:02:55.8]} 9. a4 {[%clk 0:02:50.3]} 9... a6 {[%clk 0:02:55.3]}
10. Nc4 {[%clk 0:02:49.4]} 10... b5 {[%clk 0:02:55]} 11. axb5 {[%clk 0:02:48.4]}
11... axb5 {[%clk 0:02:55.5]} 12. Ne3 {[%clk 0:02:47.9]} 12... e6 {[%clk
0:02:54.3]} 13. Nh4 {[%clk 0:02:36.5]} 13... d5 {[%clk 0:02:50.5]} 14. exd5
{[%clk 0:02:10]} 14... exd5 {[%clk 0:02:49.6]} 15. c3 {[%clk 0:01:57.9]} 15...
Be6 {[%clk 0:02:47.9]} 16. d4 {[%clk 0:01:47.9]} 16... cxd4 {[%clk 0:02:43]} 17.
cxd4 {[%clk 0:01:46.9]} 17... Qb6 {[%clk 0:02:42.4]} 18. Nc2 {[%clk 0:01:41.5]}
18... b4 {[%clk 0:02:39.8]} 19. Nf3 {[%clk 0:01:35.2]} 19... b3 {[%clk
0:02:38.2]} 20. Ne3 {[%clk 0:01:29.3]} 20... Ne4 {[%clk 0:02:38.3]} 21. Ra3
{[%clk 0:01:09.3]} 21... Nxd4 {[%clk 0:02:30.6]} 22. Nxd4 {[%clk 0:01:01.4]}
22... Bxd4 {[%clk 0:02:27.3]} 23. Bxe4 {[%clk 0:00:35.2]} 23... dxe4 {[%clk
0:02:25.7]} 24. Qe2 {[%clk 0:00:21.9]} 24... Rfc8 {[%clk 0:02:21.3]} 25. Ng4
{[%clk 0:00:16.6]} 25... Bxg4 {[%clk 0:02:20.7]} 26. Qxg4 {[%clk 0:00:15.3]}
26... Bxf2+ {[%clk 0:02:21.3]} 27. Kg2 {[%clk 0:00:13.6]} 27... Bxe1 {[%clk
0:02:20.4]} 28. Bf4 {[%clk 0:00:06.6]} 28... Rc2+ {[%clk 0:02:19.5]} 29. Kh3
{[%clk 0:00:05.6]} 29... Qg1 {[%clk 0:02:17.2]} 30. Kh4 {[%clk 0:00:05.2]} 30...
Qxh2+ {[%clk 0:02:16.8]} 31. Kg5 {[%clk 0:00:05.5]} 31... h6+ {[%clk 0:02:14.5]}
32. Kf6 {[%clk 0:00:05.3]} 32... Rc6+ {[%clk 0:02:12.1]} 33. Ke7 {[%clk
0:00:03.6]} 33... Bb4+ {[%clk 0:02:12.1]} 34. Kd7 {[%clk 0:00:01.4]} 34... Bxa3
{[%clk 0:02:00.4]} 0-1

[Event "Late-Titled-Tuesday-Blitz-May-28-2024"]
[Site "Chess.com"]
[Date "2024.05.28"]
[Round "7"]
[White "SHIVACalypso"]
[Black "BAS8892"]
[Result "0-1"]
[WhiteElo "2545"]
[BlackElo "2733"]
[TimeControl "180+1"]
[EndTime "15:16:03 PDT"]
[Termination "BAS8892 won by resignation"]

1. f4 {[%clk 0:02:58.7]} 1... c5 {[%clk 0:03:00.2]} 2. Nf3 {[%clk 0:02:58.8]}
2... Nc6 {[%clk 0:03:00.9]} 3. b4 {[%clk 0:02:59.2]} 3... cxb4 {[%clk
0:03:00.2]} 4. Bb2 {[%clk 0:02:59.5]} 4... d5 {[%clk 0:03:00.1]} 5. e3 {[%clk
0:02:57]} 5... Bg4 {[%clk 0:02:59.9]} 6. a3 {[%clk 0:02:57.1]} 6... bxa3 {[%clk
0:02:58.8]} 7. Nxa3 {[%clk 0:02:58]} 7... Nf6 {[%clk 0:02:57.4]} 8. Be2 {[%clk
0:02:57.9]} 8... e6 {[%clk 0:02:57.3]} 9. O-O {[%clk 0:02:57.7]} 9... Be7 {[%clk
0:02:57]} 10. h3 {[%clk 0:02:56.8]} 10... Bh5 {[%clk 0:02:56.8]} 11. g4 {[%clk
0:02:56.7]} 11... Bg6 {[%clk 0:02:56.8]} 12. d3 {[%clk 0:02:53.4]} 12... O-O
{[%clk 0:02:55.7]} 13. Ne5 {[%clk 0:02:49.4]} 13... Qb6 {[%clk 0:02:55]} 14.
Nxc6 {[%clk 0:02:47.9]} 14... Qxe3+ {[%clk 0:02:54.5]} 15. Kg2 {[%clk
0:02:46.4]} 15... bxc6 {[%clk 0:02:54.4]} 16. Bc1 {[%clk 0:02:27.3]} 16... Qb6
{[%clk 0:02:53.6]} 17. f5 {[%clk 0:02:27.8]} 17... exf5 {[%clk 0:02:49.4]} 18.
gxf5 {[%clk 0:02:28.7]} 18... Qd4 {[%clk 0:02:34.8]} 19. Rb1 {[%clk 0:02:25.4]}
19... Bd6 {[%clk 0:02:30.1]} 20. fxg6 {[%clk 0:02:22.5]} 20... fxg6 {[%clk
0:02:30.3]} 21. c4 {[%clk 0:02:05.8]} 21... Rae8 {[%clk 0:02:23.4]} 22. Nc2
{[%clk 0:02:00.6]} 22... Qe5 {[%clk 0:02:22.5]} 23. Bf4 {[%clk 0:00:55.9]} 23...
Qxe2+ {[%clk 0:02:22.2]} 24. Rf2 {[%clk 0:00:53.1]} 24... Qe6 {[%clk 0:02:13.8]}
25. Nd4 {[%clk 0:00:44.3]} 25... Qd7 {[%clk 0:02:11.3]} 26. Bxd6 {[%clk
0:00:40.9]} 26... Qxd6 {[%clk 0:02:11.3]} 27. Rb7 {[%clk 0:00:40.8]} 27... Nh5
{[%clk 0:02:09.2]} 28. Rxf8+ {[%clk 0:00:36.3]} 28... Rxf8 {[%clk 0:02:08.4]}
29. Qg4 {[%clk 0:00:37.1]} 29... Nf4+ {[%clk 0:02:04.4]} 30. Kh1 {[%clk
0:00:34.8]} 30... dxc4 {[%clk 0:02:03.7]} 31. Rd7 {[%clk 0:00:26.2]} 31... Qe5
{[%clk 0:02:03.6]} 32. Nxc6 {[%clk 0:00:20.2]} 32... Qe1+ {[%clk 0:02:01.2]} 33.
Kh2 {[%clk 0:00:19.7]} 33... Qf2+ {[%clk 0:01:58.3]} 34. Kh1 {[%clk 0:00:19.6]}
34... Ne2 {[%clk 0:01:43.9]} 35. Ne7+ {[%clk 0:00:18.5]} 35... Kh8 {[%clk
0:01:43.3]} 36. Nxg6+ {[%clk 0:00:16.8]} 36... hxg6 {[%clk 0:01:42.8]} 37. Qh4+
{[%clk 0:00:17.7]} 37... Qxh4 {[%clk 0:01:42.3]} 0-1

[Event "Late-Titled-Tuesday-Blitz-May-28-2024"]
[Site "Chess.com"]
[Date "2024.05.28"]
[Round "7"]
[White "bancsoo"]
[Black "RAU4ever"]
[Result "1-0"]
[WhiteElo "2891"]
[BlackElo "2371"]
[TimeControl "180+1"]
[EndTime "15:16:04 PDT"]
[Termination "bancsoo won by resignation"]

1. d4 {[%clk 0:02:58.7]} 1... Nf6 {[%clk 0:02:59.1]} 2. Nf3 {[%clk 0:02:58.9]}
2... e6 {[%clk 0:02:59.5]} 3. g3 {[%clk 0:02:59.1]} 3... b5 {[%clk 0:02:55.6]}
4. Bg2 {[%clk 0:02:59.3]} 4... Bb7 {[%clk 0:02:55.8]} 5. O-O {[%clk 0:02:59.7]}
5... Be7 {[%clk 0:02:55.8]} 6. Bg5 {[%clk 0:02:58]} 6... h6 {[%clk 0:02:51.5]}
7. Bxf6 {[%clk 0:02:56.8]} 7... Bxf6 {[%clk 0:02:51.6]} 8. c3 {[%clk 0:02:57.1]}
8... O-O {[%clk 0:02:49]} 9. Qd3 {[%clk 0:02:52.9]} 9... a6 {[%clk 0:02:43.3]}
10. Ng5 {[%clk 0:02:51.4]} 10... Bxg5 {[%clk 0:02:33.8]} 11. Bxb7 {[%clk
0:02:51.8]} 11... Ra7 {[%clk 0:02:34.7]} 12. Bg2 {[%clk 0:02:51.4]} 12... d5
{[%clk 0:01:42.4]} 13. a4 {[%clk 0:02:42.2]} 13... Rb7 {[%clk 0:01:36.9]} 14.
axb5 {[%clk 0:02:40.1]} 14... axb5 {[%clk 0:01:37.8]} 15. b4 {[%clk 0:02:40.4]}
15... Nd7 {[%clk 0:01:37.6]} 16. e4 {[%clk 0:02:39.1]} 16... c6 {[%clk
0:01:36.1]} 17. f4 {[%clk 0:02:36.5]} 17... Be7 {[%clk 0:01:34.8]} 18. Nd2
{[%clk 0:02:34.7]} 18... Nb6 {[%clk 0:01:34.7]} 19. f5 {[%clk 0:02:33.6]} 19...
Qd7 {[%clk 0:01:11.1]} 20. Rae1 {[%clk 0:02:16]} 20... exf5 {[%clk 0:00:59.1]}
21. Rxf5 {[%clk 0:02:12.3]} 21... Bg5 {[%clk 0:00:50.6]} 22. Nb3 {[%clk
0:02:03.3]} 22... Re8 {[%clk 0:00:36.4]} 23. e5 {[%clk 0:01:52.4]} 23... Qc8
{[%clk 0:00:29.5]} 24. Nc5 {[%clk 0:01:49.3]} 24... Ra7 {[%clk 0:00:29.2]} 25.
Ref1 {[%clk 0:01:48.8]} 25... Nc4 {[%clk 0:00:28.5]} 26. h4 {[%clk 0:01:42.9]}
26... Ne3 {[%clk 0:00:24.7]} 27. hxg5 {[%clk 0:01:40.1]} 27... Nxf1 {[%clk
0:00:25.1]} 28. Qxf1 {[%clk 0:01:36.2]} 28... hxg5 {[%clk 0:00:24.9]} 29. Rxg5
{[%clk 0:01:36.3]} 29... Ra2 {[%clk 0:00:19]} 30. Qf6 {[%clk 0:01:34.7]} 30...
g6 {[%clk 0:00:17.7]} 31. e6 {[%clk 0:01:34]} 31... Qc7 {[%clk 0:00:12.6]} 32.
exf7+ {[%clk 0:01:30.5]} 32... Qxf7 {[%clk 0:00:12.4]} 33. Rxg6+ {[%clk
0:01:31.1]} 33... Kf8 {[%clk 0:00:12.7]} 1-0